fUST/lending_fUST_20260104
["ID","MTS","AMOUNT","RATE_DAILY","PERIOD"]
[400378745,1767462778003,166.82,9.963e-05,2]
[400378746,1767462778417,208.52,0.00010675,2]
[400378747,1767462778816,250.22,0.00011387,2]
[400378748,1767462779222,291.93,0.00012098,2]
[400378749,1767462849090,150.13,0.00010286,2]
[400378750,1767462849400,180.16,0.00010972,2]
[400378751,1767462849800,210.19,0.00011657,2]
[400378752,1767462919267,162.04,0.0001189,2]
[400378754,1767463389980,217.1177102,0.00011406,2]
[400378755,1767463390254,168.68,0.0001197,2]
[400378757,1767463408893,397.0,0.00030136,120]
[400378759,1767463526773,151.51,9.798e-05,2]
[400378760,1767463527197,170.45,0.00010148,2]
[400378781,1767463686891,187.60385006,0.00011989,2]
[400378794,1767463770201,169.332396,6.197e-05,2]
[400378798,1767463812940,-221.00000003,0.00012129,2]
[400378799,1767463815658,-192.45000003,0.00012129,2]
[400378800,1767463817610,221.00000003,0.00012105,2]
[400378801,1767463831262,7094.30604371,0.00011896,2]
[400378802,1767463831286,10000.01,0.00011896,2]
[400378803,1767463831311,10000.01,0.00011896,2]
[400378804,1767463831346,7607.49923269,0.00011896,2]
[400378830,1767463832396,-87763.08810484,0.00012129,2]
[400378832,1767463832409,-8152.62859141,0.00012129,2]
[400378833,1767463832422,-1139.04789496,0.00012129,2]
[400378834,1767463832434,-3793.46952289,0.00012129,2]
[400378835,1767463832446,-407.03070456,0.00012129,2]
[400378836,1767463832463,-1000.0,0.00012129,2]
[400378837,1767463832475,-495.79515623,0.00012129,2]
[400378838,1767463837367,1500.0,0.00010959,2]
[400378866,1767463840643,192.45000003,0.00012105,2]
[400378867,1767463840791,-414.45292861,0.00012128,2]
[400378868,1767463840801,-500.0,0.00012128,2]
[400378869,1767463840811,-500.0,0.00012128,2]
[400378870,1767463840822,-500.0,0.00012128,2]
[400378871,1767463840832,-500.0,0.00012128,2]
[400378872,1767463840841,-500.0,0.00012128,2]
[400378873,1767463840851,-500.0,0.00012128,2]
[400378874,1767463840861,-500.0,0.00012128,2]
[400378875,1767463840870,-207.10850557,0.00012128,2]
[400378876,1767463840880,-500.0,0.00012128,2]
[400378877,1767463840890,-178.12331524,0.00012128,2]
[400378878,1767463840900,-3622.75705592,0.00012129,2]
[400379075,1767463846696,-4255.77640513,0.00012129,2]
[400379077,1767463927940,167.93,0.00010288,2]
[400379078,1767463994395,159.2,9.546e-05,2]
[400379079,1767463994790,181.94,9.9e-05,2]
[400379080,1767463995335,190.99076728,0.00010253,2]
[400379081,1767463995360,13.68923272,0.00010253,2]
[400379082,1767463995756,227.43,0.00010607,2]
[400379083,1767464106151,507.443316,0.00011216,2]
[400379084,1767464213214,8467.2514205,0.00011165,2]
[400379086,1767464275486,153.03,9.315e-05,2]
[400379087,1767464275885,172.16,9.648e-05,2]
[400379088,1767464319958,204.5258424,0.00011165,2]
[400379089,1767464343901,223.39657906,0.00012077,2]
[400379092,1767464654425,31.08360932,0.00011249,2]
[400379093,1767464654449,464.57076538,0.00011249,2]
[400379094,1767464677195,3599.98,0.0003013,120]
[400379095,1767464684198,178.71726324,0.00012077,2]
[400379108,1767464846537,1527.0986922,0.00011332,2]
[400379109,1767464852751,7829.62327918,0.00012029,2]
[400379110,1767464852780,10000.01,0.00012029,2]
[400379111,1767464852809,10000.01,0.00012029,2]
[400379112,1767464852836,10000.01,0.00012029,2]
[400379113,1767464852867,10000.01,0.00012029,2]
[400379114,1767464852894,10000.01,0.00012029,2]
[400379115,1767464853046,10000.01,0.00012029,2]
[400379116,1767464853076,10000.01,0.00012029,2]
[400379117,1767464853108,10000.01,0.00012029,2]
[400379118,1767464853136,10000.01,0.00012029,2]
[400379119,1767464864575,-502.00548888,0.00012029,2]
[400379120,1767464867676,-208.60778142,0.00012029,2]
[400379121,1767464871172,181.86,7.565e-05,2]
[400379122,1767464871563,272.8,7.909e-05,2]
[400379123,1767464871595,-205.74623607,0.00012029,2]
[400379124,1767464871974,363.73,8.253e-05,2]
[400379125,1767464872398,454.66,8.597e-05,2]
[400379126,1767464872446,-1011.05713641,0.00011908,2]
[400379127,1767464872776,545.59,8.941e-05,2]
[400379128,1767464873173,636.53,9.285e-05,2]
[400379129,1767464873588,727.46,9.629e-05,2]
[400379130,1767464873985,818.39,9.972e-05,2]
[400379131,1767464874378,909.32,0.00010316,2]
[400379132,1767464876736,-349.04958309,0.00012029,2]
[400379133,1767464879545,-4865.9468305,0.00012029,2]
[400379134,1767464879572,-10000.01,0.00012029,2]
[400379135,1767464879695,-10000.01,0.00012029,2]
[400379136,1767464879852,-277.39278668,0.00012029,2]
[400379137,1767464881337,-277.39278668,0.00011908,2]
[400379138,1767464882780,-250.4574325,0.00011908,2]
[400379139,1767464884904,-4472.14978082,0.00011908,2]
[400379140,1767464884936,-300.0,0.00012028,2]
[400379141,1767464884998,-455.71043836,0.00012029,2]
[400379142,1767464885029,-10000.01,0.00012029,2]
[400379143,1767464885214,-10000.01,0.00012029,2]
[400379144,1767464885369,-10000.01,0.00012029,2]
[400379145,1767464885418,-246.38258082,0.00012029,2]
[400379146,1767464885576,-10000.01,0.00012029,2]
[400379147,1767464885821,-10000.01,0.00012029,2]
[400379148,1767464885915,-10000.01,0.00012029,2]
[400379149,1767464887459,-315.35540128,0.00012029,2]
[400379151,1767464889006,-300.0,0.00012029,2]
[400379152,1767464891151,-412.576898,0.00012029,2]
[400379154,1767464893921,-151.59812463,0.00012029,2]
[400379155,1767464895452,-238.88394758,0.00012029,2]
[400379156,1767464899143,-268.1597608,0.00011908,2]
[400379158,1767464901291,-287.30063231,0.00011908,2]
[400379159,1767464903390,-366.10603496,0.00011908,2]
[400379160,1767464905488,-197.23411541,0.00011908,2]
[400379161,1767464909729,-170.14,0.00011789,2]
[400379162,1767464913482,-365.47384841,0.00011789,2]
[400379163,1767464914982,-311.46308135,0.00011789,2]
[400379164,1767464916491,-190.60226725,0.00011789,2]
[400379165,1767464917972,-175.26288979,0.00011789,2]
[400379166,1767464918310,-3787.0579132,0.00011789,2]
[400379167,1767464918357,-2425.8941736,0.00011908,2]
[400379169,1767464918691,-1455.30528292,0.00011908,2]
[400379170,1767464918733,-7089.39943416,0.00012029,2]
[400379171,1767464919610,18061.02361895,0.0001,2]
[400379175,1767464924810,-253.5365345,0.00011908,2]
[400379176,1767464924847,-9492.936931,0.00012029,2]
[400379177,1767464931223,-799.42191105,0.00012029,2]
[400379178,1767464931248,-8401.1661779,0.00012029,2]
[400379179,1767464934734,-5000.0,0.00011908,2]
[400379180,1767464944559,0.01,5.751e-05,2]
[400379181,1767464944584,152.37,5.751e-05,2]
[400379182,1767464944951,304.77,6.025e-05,2]
[400379183,1767464945350,457.15,6.298e-05,2]
[400379184,1767464945751,609.54,6.572e-05,2]
[400379185,1767464946634,761.92,6.846e-05,2]
[400379186,1767464947171,914.31,7.12e-05,2]
[400379187,1767464947480,1066.69,7.394e-05,2]
[400379189,1767464948336,1219.08,7.668e-05,2]
[400379190,1767464948751,1371.46,7.941e-05,2]
[400379191,1767464949143,1523.84,8.215e-05,2]
[400379192,1767464955736,5000.0,0.00012077,2]
[400379198,1767464980567,5000.0,0.00012077,2]
[400379200,1767465005354,0.01,0.00012077,2]
[400379201,1767465005383,4999.99,0.00012077,2]
[400379202,1767465005902,5000.02,0.00011929,2]
[400379203,1767465005930,10000.01,0.00011929,2]
[400379204,1767465005957,10000.01,0.00011929,2]
[400379205,1767465005983,10000.01,0.00011929,2]
[400379206,1767465006010,10000.01,0.00011929,2]
[400379207,1767465006035,10000.01,0.00011929,2]
[400379208,1767465006061,10000.01,0.00011929,2]
[400379209,1767465006086,10000.01,0.00011929,2]
[400379210,1767465006113,10000.01,0.00011929,2]
[400379211,1767465011380,-300.0,0.00011929,2]
[400379212,1767465014454,-175.20227849,0.00011929,2]
[400379213,1767465015935,-353.27021086,0.00011929,2]
[400379214,1767465021216,184.99,7.831e-05,2]
[400379215,1767465021636,246.65,8.172e-05,2]
[400379216,1767465022152,308.31,8.512e-05,2]
[400379217,1767465022443,369.97,8.853e-05,2]
[400379218,1767465022841,431.63,9.193e-05,2]
[400379219,1767465023575,493.3,9.534e-05,2]
[400379220,1767465023730,554.96,9.874e-05,2]
[400379221,1767465024124,616.62,0.00010215,2]
[400379222,1767465024818,-189.20691633,0.00011685,2]
[400379223,1767465025130,-809.79308367,0.00011685,2]
[400379224,1767465025380,-10000.01,0.00011929,2]
[400379225,1767465025486,-10000.01,0.00011929,2]
[400379226,1767465025608,-10000.01,0.00011929,2]
[400379227,1767465025830,-10000.01,0.00011929,2]
[400379228,1767465026030,-10000.01,0.00011929,2]
[400379229,1767465026227,-10000.01,0.00011929,2]
[400379230,1767465026407,-10000.01,0.00011929,2]
[400379231,1767465026507,-10000.01,0.00011929,2]
[400379250,1767465031548,-5000.0,0.00011809,2]
[400379251,1767465031559,-141998.44581167,0.00011929,2]
[400379252,1767465031570,-178.71726324,0.00012027,2]
[400379253,1767465031580,-591.0,0.00012127,2]
[400379254,1767465031590,-464.27398787,0.00012127,2]
[400379255,1767465031600,-167.431,0.00012177,2]
[400379256,1767465031610,-500.0,0.00012198,2]
[400379257,1767465031620,-151.83035106,0.00012262,2]
[400379258,1767465031629,-1200.0,0.0001233,2]
[400379259,1767465031639,-300.0,0.0001233,2]
[400379260,1767465031650,-3185.1026957,0.00012331,2]
[400379261,1767465031659,-3809.99937,0.00012331,2]
[400379262,1767465031670,-250.0,0.00012341,2]
[400379263,1767465031679,-169.332396,0.00012393,2]
[400379264,1767465031689,-300.0,0.00012472,2]
[400379265,1767465031701,-300.0,0.00012472,2]
[400379266,1767465031711,-300.0,0.00012472,2]
[400379267,1767465031721,-300.0,0.00012472,2]
[400379268,1767465031732,-300.0,0.00012472,2]
[400379269,1767465031742,-300.0,0.00012472,2]
[400379270,1767465031752,-300.0,0.00012472,2]
[400379271,1767465031763,-300.0,0.00012472,2]
[400379272,1767465031776,-300.0,0.00012472,2]
[400379273,1767465031786,-300.0,0.00012472,2]
[400379274,1767465031796,-300.0,0.00012472,2]
[400379275,1767465031806,-300.0,0.00012472,2]
[400379276,1767465031816,-300.0,0.00012472,2]
[400379277,1767465031827,-300.0,0.00012472,2]
[400379278,1767465031837,-300.0,0.00012472,2]
[400379279,1767465031847,-600.0,0.00012472,2]
[400379280,1767465031858,-168.0,0.00012704,2]
[400379281,1767465031867,-168.0,0.00012822,2]
[400379282,1767465031877,-168.0,0.00012841,2]
[400379283,1767465031888,-178.71726324,0.00012898,2]
[400379284,1767465031898,-168.0,0.00012986,2]
[400379285,1767465031908,-168.0,0.00013075,2]
[400379286,1767465031918,-1000.0,0.00013092,2]
[400379287,1767465031928,-991.0,0.000131,2]
[400379288,1767465031938,-500.0,0.0001314,2]
[400379289,1767465031948,-500.0,0.0001314,2]
[400379290,1767465031958,-500.0,0.0001314,2]
[400379291,1767465031968,-500.0,0.0001314,2]
[400379292,1767465031978,-500.0,0.0001314,2]
[400379293,1767465031988,-500.0,0.0001314,2]
[400379294,1767465031998,-500.0,0.0001314,2]
[400379295,1767465032009,-10926.0653578,0.00013173,2]
[400379296,1767465032019,-168.0,0.00013243,2]
[400379297,1767465032029,-168.0,0.00013252,2]
[400379298,1767465032039,-500.0,0.00013273,2]
[400379299,1767465032049,-500.31926671,0.00013273,2]
[400379300,1767465032059,-500.0,0.00013273,2]
[400379301,1767465032069,-500.0,0.00013273,2]
[400379302,1767465032079,-500.0,0.00013273,2]
[400379303,1767465032089,-522.04357159,0.00013273,2]
[400379304,1767465032099,-500.0,0.00013273,2]
[400379305,1767465032111,-500.0,0.00013273,2]
[400379306,1767465032121,-500.0,0.00013273,2]
[400379307,1767465032131,-500.0,0.00013273,2]
[400379308,1767465032141,-500.0,0.00013273,2]
[400379309,1767465032151,-294.29169865,0.00013273,2]
[400379310,1767465032161,-569.61598795,0.00013273,2]
[400379311,1767465032171,-428.55377639,0.00013273,2]
[400379312,1767465032181,-500.0,0.00013273,2]
[400379313,1767465032191,-500.0,0.00013273,2]
[400379314,1767465032202,-500.0,0.00013273,2]
[400379315,1767465032212,-500.0,0.00013273,2]
[400379316,1767465032221,-500.0,0.00013273,2]
[400379317,1767465032231,-450.29215048,0.00013273,2]
[400379318,1767465032241,-500.0,0.00013277,2]
[400379319,1767465032251,-500.0,0.00013277,2]
[400379320,1767465032262,-500.0,0.00013277,2]
[400379321,1767465032369,-500.0,0.00013277,2]
[400379322,1767465032384,-500.0,0.00013277,2]
[400379323,1767465032394,-500.0,0.00013277,2]
[400379324,1767465032404,-168.0,0.00013301,2]
[400379325,1767465032415,-4225.0,0.00013357,2]
[400379326,1767465032426,-500.0,0.00013414,2]
[400379327,1767465032436,-400.0,0.00013414,2]
[400379328,1767465032445,-500.0,0.00013414,2]
[400379329,1767465032456,-500.0,0.00013414,2]
[400379330,1767465032466,-500.0,0.00013414,2]
[400379331,1767465032475,-500.0,0.00013414,2]
[400379332,1767465032485,-500.0,0.00013414,2]
[400379333,1767465032495,-168.0,0.0001342,2]
[400379334,1767465032506,-2278.71463787,0.00013424,2]
[400379335,1767465032516,-420.0,0.00013531,2]
[400379336,1767465032526,-300.0,0.00013551,2]
[400379337,1767465032535,-550.0,0.00013551,2]
[400379338,1767465032546,-400.0,0.00013551,2]
[400379339,1767465032556,-500.0,0.00013551,2]
[400379340,1767465032566,-500.0,0.00013551,2]
[400379341,1767465032576,-1680.0,0.00013563,2]
[400379342,1767465032586,-201.84,0.000136,2]
[400379343,1767465032596,-168.0,0.00013625,2]
[400379344,1767465032606,-300.0,0.00013673,2]
[400379345,1767465032616,-65668.0561213,0.00013674,2]
[400379346,1767465032625,-500.0,0.00013688,2]
[400379347,1767465032635,-500.0,0.00013688,2]
[400379348,1767465032646,-168.0,0.00013693,2]
[400379349,1767465032655,-194.10572752,0.00013698,2]
[400379350,1767465032666,-775.64648715,0.00013698,2]
[400379351,1767465032675,-260.0205397,0.00013698,2]
[400379352,1767465032685,-500.0,0.00013698,2]
[400379353,1767465032695,-622.49,0.00013698,2]
[400379354,1767465032705,-622.49,0.00013698,2]
[400379355,1767465032715,-622.49,0.00013698,2]
[400379356,1767465032725,-622.49,0.00013698,2]
[400379357,1767465032735,-622.49,0.00013698,2]
[400379358,1767465032759,-622.49,0.00013698,2]
[400379359,1767465032771,-622.49,0.00013698,2]
[400379360,1767465032782,-622.49,0.00013698,2]
[400379361,1767465032793,-622.49,0.00013698,2]
[400379362,1767465032804,-622.49,0.00013698,2]
[400379363,1767465032814,-622.49,0.00013698,2]
[400379364,1767465032825,-622.49,0.00013698,2]
[400379365,1767465032836,-622.49,0.00013698,2]
[400379366,1767465032847,-622.49,0.00013698,2]
[400379367,1767465032858,-622.49,0.00013698,2]
[400379368,1767465032868,-622.49,0.00013698,2]
[400379369,1767465032879,-622.49,0.00013698,2]
[400379370,1767465032889,-622.49,0.00013698,2]
[400379371,1767465032900,-622.49,0.00013698,2]
[400379372,1767465032910,-622.49,0.00013698,2]
[400379373,1767465032920,-622.49,0.00013698,2]
[400379374,1767465032930,-622.49,0.00013698,2]
[400379375,1767465032941,-622.49,0.00013698,2]
[400379376,1767465032951,-622.69471113,0.00013698,2]
[400379377,1767465032962,-164.28778919,0.00013698,2]
[400379378,1767465032973,-152.10007547,0.00013698,2]
[400379379,1767465032985,-849.65,0.00013698,2]
[400379380,1767465032995,-849.65,0.00013698,2]
[400379381,1767465033005,-849.65,0.00013698,2]
[400379382,1767465033015,-849.65,0.00013698,2]
[400379383,1767465033026,-849.65,0.00013698,2]
[400379384,1767465033036,-849.65,0.00013698,2]
[400379385,1767465033046,-849.65,0.00013698,2]
[400379386,1767465033056,-849.65,0.00013698,2]
[400379387,1767465033067,-849.65,0.00013698,2]
[400379388,1767465033077,-849.65,0.00013698,2]
[400379389,1767465033088,-849.65,0.00013698,2]
[400379390,1767465033098,-849.65,0.00013698,2]
[400379391,1767465033108,-849.65,0.00013698,2]
[400379392,1767465033118,-849.65,0.00013698,2]
[400379393,1767465033129,-849.65,0.00013698,2]
[400379394,1767465033140,-849.65,0.00013698,2]
[400379395,1767465033150,-849.65,0.00013698,2]
[400379396,1767465033160,-849.65,0.00013698,2]
[400379397,1767465033170,-849.65,0.00013698,2]
[400379398,1767465033180,-849.65,0.00013698,2]
[400379399,1767465033190,-849.65,0.00013698,2]
[400379400,1767465033200,-849.65,0.00013698,2]
[400379401,1767465033211,-849.65,0.00013698,2]
[400379402,1767465033221,-849.88910064,0.00013698,2]
[400379403,1767465033236,-188.48969309,0.00013698,2]
[400379404,1767465033247,-424.17065471,0.00013698,2]
[400379405,1767465033257,-1696.68261882,0.00013698,2]
[400379406,1767465033268,-3813.71835646,0.00013698,2]
[400379407,1767465033280,-1046.0,0.00013698,2]
[400379408,1767465033291,-1046.0,0.00013698,2]
[400379409,1767465033302,-1046.0,0.00013698,2]
[400379410,1767465033313,-1046.0,0.00013698,2]
[400379411,1767465033325,-1046.0,0.00013698,2]
[400379412,1767465033336,-1046.0,0.00013698,2]
[400379413,1767465033347,-1046.0,0.00013698,2]
[400379414,1767465033358,-1046.0,0.00013698,2]
[400379415,1767465033369,-1046.0,0.00013698,2]
[400379416,1767465033382,-1046.0,0.00013698,2]
[400379417,1767465033393,-1046.0,0.00013698,2]
[400379418,1767465033403,-1046.0,0.00013698,2]
[400379419,1767465033415,-1046.0,0.00013698,2]
[400379420,1767465033426,-1046.0,0.00013698,2]
[400379421,1767465033437,-1046.0,0.00013698,2]
[400379422,1767465033447,-1046.0,0.00013698,2]
[400379423,1767465033458,-1046.0,0.00013698,2]
[400379424,1767465033468,-1046.0,0.00013698,2]
[400379425,1767465033479,-1046.0,0.00013698,2]
[400379426,1767465033490,-1046.0,0.00013698,2]
[400379427,1767465033500,-1046.0,0.00013698,2]
[400379428,1767465033510,-1046.0,0.00013698,2]
[400379429,1767465033520,-1046.0,0.00013698,2]
[400379430,1767465033530,-1046.17146092,0.00013698,2]
[400379431,1767465033540,-440.9136363,0.00013698,2]
[400379432,1767465033551,-1761.89089065,0.00013698,2]
[400379433,1767465033561,-17362.3105922,0.00013699,2]
[400379434,1767465033571,-2943.8868117,0.00013699,2]
[400379435,1767465033582,-1479.642883,0.00013699,2]
[400379436,1767465033592,-1000.0,0.00013699,2]
[400379437,1767465033602,-151.0,0.00013699,2]
[400379438,1767465033612,-151.0,0.00013699,2]
[400379439,1767465033622,-151.0,0.00013699,2]
[400379440,1767465033633,-151.0,0.00013699,2]
[400379441,1767465033643,-151.0,0.00013699,2]
[400379442,1767465033654,-151.0,0.00013699,2]
[400379443,1767465033663,-151.0,0.00013699,2]
[400379444,1767465033674,-151.0,0.00013699,2]
[400379445,1767465033686,-151.0,0.00013699,2]
[400379446,1767465033696,-155.922176,0.00013699,2]
[400379447,1767465033707,-667.025944,0.00013699,2]
[400379448,1767465033716,-151.0,0.00013699,2]
[400379449,1767465033726,-151.0,0.00013699,2]
[400379450,1767465033736,-500.0,0.00013699,2]
[400379451,1767465033855,-500.0,0.00013699,2]
[400379452,1767465033866,-634.13858672,0.00013699,2]
[400379453,1767465033876,-501.18575005,0.00013699,2]
[400379454,1767465033885,-508.15243735,0.00013699,2]
[400379455,1767465033895,-500.0,0.00013699,2]
[400379456,1767465033904,-160.10685719,0.00013699,2]
[400379457,1767465033914,-500.0,0.00013699,2]
[400379458,1767465033924,-500.0,0.00013699,2]
[400379459,1767465033934,-500.0,0.00013699,2]
[400379460,1767465033943,-500.0,0.00013699,2]
[400379461,1767465033953,-500.0,0.00013699,2]
[400379462,1767465033963,-500.0,0.00013699,2]
[400379463,1767465033973,-500.0,0.00013699,2]
[400379464,1767465033984,-198.25926734,0.00013699,2]
[400379465,1767465033994,-500.79513169,0.00013699,2]
[400379466,1767465034003,-501.26577405,0.00013699,2]
[400379467,1767465034013,-500.0,0.00013699,2]
[400379468,1767465034023,-500.0,0.00013699,2]
[400379469,1767465034032,-284.39526714,0.00013699,2]
[400379470,1767465034042,-500.0,0.00013699,2]
[400379471,1767465034051,-373.28262423,0.00013699,2]
[400379472,1767465034061,-500.0,0.00013699,2]
[400379473,1767465034071,-500.0,0.00013699,2]
[400379474,1767465034081,-500.0,0.00013699,2]
[400379475,1767465034091,-720.0,0.0001372,2]
[400379476,1767465034102,-178.71726324,0.00013768,2]
[400379477,1767465034112,-606.71408283,0.0001382,2]
[400379478,1767465034122,-501.53153846,0.00013821,2]
[400379479,1767465034131,-1000.0,0.00013821,2]
[400379480,1767465034141,-504.52035082,0.00013821,2]
[400379481,1767465034150,-1000.0,0.00013821,2]
[400379482,1767465034161,-1000.0,0.00013821,2]
[400379483,1767465034171,-1000.0,0.00013821,2]
[400379484,1767465034181,-560.65291273,0.00013821,2]
[400379485,1767465034190,-1000.0,0.00013821,2]
[400379486,1767465034200,-1000.0,0.00013821,2]
[400379487,1767465034209,-1000.0,0.00013821,2]
[400379488,1767465034219,-1000.0,0.00013821,2]
[400379489,1767465034229,-1000.0,0.00013821,2]
[400379490,1767465034239,-1000.0,0.00013821,2]
[400379491,1767465034249,-168.0,0.00013824,2]
[400379492,1767465034259,-213.45377873,0.00013825,2]
[400379493,1767465034268,-500.0,0.00013825,2]
[400379494,1767465034278,-500.0,0.00013825,2]
[400379495,1767465034288,-168.0,0.00013832,2]
[400379496,1767465034297,-168.0,0.00013853,2]
[400379497,1767465034307,-4501.0,0.00013933,2]
[400379498,1767465034317,-500.0,0.00013962,2]
[400379499,1767465034327,-202.90234435,0.00013962,2]
[400379500,1767465034337,-500.0,0.00014,2]
[400379501,1767465034347,-622.0,0.00014099,2]
[400379502,1767465034357,-547.84330569,0.00014127,2]
[400379503,1767465034367,-600.0,0.00014221,2]
[400379504,1767465034381,-1000.0,0.00014247,2]
[400379505,1767465034392,-250.0,0.00014247,2]
[400379506,1767465034402,-1000.0,0.00014247,2]
[400379507,1767465034413,-1000.0,0.00014247,2]
[400379508,1767465034422,-1000.0,0.00014247,2]
[400379509,1767465034433,-1000.0,0.00014247,2]
[400379510,1767465034443,-309.91150442,0.00014247,2]
[400379511,1767465034452,-1004.37283025,0.00014247,2]
[400379512,1767465034463,-502.60310461,0.00014247,2]
[400379513,1767465034473,-316.4851046,0.00014247,2]
[400379514,1767465034483,-1000.0,0.00014247,2]
[400379515,1767465034493,-1000.0,0.00014247,2]
[400379516,1767465034503,-1000.0,0.00014247,2]
[400379517,1767465034513,-190.30456771,0.00014247,2]
[400379518,1767465034523,-1000.0,0.00014247,2]
[400379519,1767465034533,-1000.0,0.00014247,2]
[400379520,1767465034542,-502.4345557,0.00014247,2]
[400379521,1767465034551,-1041.66666667,0.00014309,2]
[400379522,1767465034561,-1500.0,0.00014368,2]
[400379523,1767465034571,-1500.0,0.00014368,2]
[400379524,1767465034580,-1500.0,0.00014368,2]
[400379525,1767465034590,-498.17370795,0.00014368,2]
[400379526,1767465034601,-1500.0,0.00014368,2]
[400379527,1767465034612,-1500.0,0.00014368,2]
[400379528,1767465034623,-1500.0,0.00014368,2]
[400379529,1767465034633,-1500.0,0.00014368,2]
[400379530,1767465034643,-1150.58568289,0.00014368,2]
[400379531,1767465034653,-1505.94061185,0.00014368,2]
[400379532,1767465034663,-1744.04351737,0.00014378,2]
[400379533,1767465034673,-1000.0,0.00014462,2]
[400379534,1767465034682,-5000.0,0.000145,2]
[400379535,1767465034693,-178.71726324,0.00014639,2]
[400379536,1767465034703,-850.1257696,0.00014657,2]
[400379537,1767465034712,-203.28715425,0.00014735,2]
[400379538,1767465034722,-82036.32134783,0.00014736,2]
[400379539,1767465035043,450.31983317,0.00011928,2]
[400379540,1767465035078,182.28894125,0.00011928,2]
[400379541,1767465035109,500.0,0.00011928,2]
[400379542,1767465035139,500.0,0.00011928,2]
[400379543,1767465035247,500.0,0.00011928,2]
[400379544,1767465035525,500.0,0.00011928,2]
[400379545,1767465035796,500.0,0.00011928,2]
[400379546,1767465035918,500.0,0.00011928,2]
[400379547,1767465036123,500.0,0.00011928,2]
[400379548,1767465036163,500.0,0.00011928,2]
[400379549,1767465036214,642.18894924,0.00011928,2]
[400379550,1767465036262,500.0,0.00011928,2]
[400379557,1767465037698,-630.228,0.00013747,2]
[400379558,1767465037709,-2115.93879174,0.00014736,2]
[400379559,1767465037753,-536.67320826,0.00014736,2]
[400379578,1767465040341,-3e-08,0.00014736,2]
[400379582,1767465043305,165.22388321,0.00011928,2]
[400379583,1767465043343,500.0,0.00011928,2]
[400379584,1767465043395,500.0,0.00011928,2]
[400379585,1767465043453,500.0,0.00011928,2]
[400379586,1767465043597,168.27142176,0.00011928,2]
[400379595,1767465043857,500.0,0.00011928,2]
[400379598,1767465043980,500.0,0.00011928,2]
[400379599,1767465044544,-343.56276208,0.00013747,2]
[400379604,1767465045703,500.0,0.00011928,2]
[400379605,1767465045754,500.0,0.00011928,2]
[400379606,1767465045795,391.71697137,0.00011928,2]
[400379607,1767465052540,-108.28302863,0.00011928,2]
[400379608,1767465055061,5000.0,0.00011896,2]
[400379609,1767465059013,-489.93261529,0.00011928,2]
[400379610,1767465079043,5000.0,0.00011898,2]
[400379611,1767465094313,216.96,6.052e-05,2]
[400379612,1767465094352,-10.06738471,0.00011928,2]
[400379613,1767465094386,-500.0,0.00011928,2]
[400379614,1767465094424,-500.0,0.00011928,2]
[400379615,1767465094456,-289.25749094,0.00011928,2]
[400379616,1767465094489,-377.54177349,0.00011928,2]
[400379617,1767465094520,-500.0,0.00011928,2]
[400379618,1767465094551,-500.0,0.00011928,2]
[400379619,1767465094585,-500.0,0.00011928,2]
[400379620,1767465094617,-500.0,0.00011928,2]